bitfinex/quotes_BTCUSD_20250620
["timestamp","ask_amount","ask_price","bid_price","bid_amount"]
[1750448092527,0.75748665,103390.0,103380.0,0.10791895]
[1750448092739,1.09748665,103390.0,103380.0,0.10791895]
[1750448093375,1.12654465,103390.0,103380.0,0.10791895]
[1750448093596,1.12654465,103390.0,103380.0,0.0001]
[1750448093805,1.5919135,103390.0,103380.0,0.0001]
[1750448094253,1.12654465,103390.0,103380.0,0.0001]
[1750448095704,4.88022928,103390.0,103380.0,0.0001]
[1750448095921,4.91221928,103390.0,103380.0,0.0001]
[1750448096972,4.78584943,103390.0,103380.0,0.0001]
[1750448097631,4.81538716,103390.0,103380.0,0.0001]
[1750448100387,5.01150716,103390.0,103380.0,0.0001]
[1750448100610,5.04280716,103390.0,103380.0,0.0001]
[1750448100823,5.06598145,103390.0,103380.0,0.0001]
[1750448101252,5.1612513,103390.0,103380.0,0.0001]
[1750448101905,5.06598145,103390.0,103380.0,0.0001]
[1750448104937,4.97850716,103390.0,103380.0,0.0001]
[1750448105152,4.48271058,103390.0,103380.0,0.0646]
[1750448105366,4.31959058,103390.0,103380.0,0.34665301]
[1750448105556,4.31959058,103390.0,103380.0,0.14351895]
[1750448105799,4.31959058,103390.0,103380.0,0.0658]
[1750448106819,4.31959058,103390.0,103380.0,0.25926101]
[1750448107074,4.31959058,103390.0,103380.0,0.0658]
[1750448107288,4.31759058,103390.0,103380.0,0.0658]
[1750448107715,4.31759058,103390.0,103380.0,0.0319]
[1750448107716,4.41286043,103390.0,103380.0,0.0319]
[1750448108347,4.87822928,103390.0,103380.0,0.0001]
[1750448108553,5.07223928,103390.0,103380.0,0.0001]
[1750448108812,4.94696943,103390.0,103380.0,0.0001]
[1750448109313,4.9701553,103390.0,103380.0,0.0001]
[1750448110253,4.94696943,103390.0,103380.0,0.0001]
[1750448110463,4.97015965,103390.0,103380.0,0.0001]
[1750448110675,4.97215965,103390.0,103380.0,0.0001]
[1750448110892,4.94896943,103390.0,103380.0,0.0001]
[1750448111135,4.97215997,103390.0,103380.0,0.0001]
[1750448111586,4.94896943,103390.0,103380.0,0.0001]
[1750448112042,5.12495817,103390.0,103380.0,0.0001]
[1750448112268,5.14815141,103390.0,103380.0,0.0001]
[1750448112483,5.1775747,103390.0,103380.0,0.0001]
[1750448112936,5.14667793,103390.0,103380.0,0.0001]
[1750448113382,5.17757793,103390.0,103380.0,0.0001]
[1750448114235,5.11497793,103390.0,103380.0,0.0001]
[1750448114484,5.12404363,103390.0,103380.0,0.0001]
[1750448114906,5.02877378,103390.0,103380.0,0.0001]
[1750448115148,5.01970808,103390.0,103380.0,0.0001]
[1750448115375,5.02877575,103390.0,103380.0,0.0001]
[1750448115810,5.02878898,103390.0,103380.0,0.0001]
[1750448116047,5.02789898,103390.0,103380.0,0.0628]
[1750448117166,5.09863309,103390.0,103380.0,0.0628]
[1750448117370,5.09863309,103390.0,103380.0,0.0001]
[1750448118699,5.09863589,103390.0,103380.0,0.0001]
[1750448121546,5.08956756,103390.0,103380.0,0.0001]
[1750448121762,5.09863631,103390.0,103380.0,0.0001]
[1750448122245,5.0279022,103390.0,103380.0,0.0001]
[1750448122447,5.01883345,103390.0,103380.0,0.0637]
[1750448122679,5.02790219,103390.0,103380.0,0.0637]
[1750448123595,5.02790238,103390.0,103380.0,0.0637]
[1750448124448,5.02790304,103390.0,103380.0,0.0637]
[1750448125054,5.12317289,103390.0,103380.0,0.0637]
[1750448125706,5.02790304,103390.0,103380.0,0.0637]
[1750448125874,5.0047098,103390.0,103380.0,0.0637]
[1750448126120,5.02792976,103390.0,103380.0,0.0637]
[1750448127270,5.00471036,103390.0,103380.0,0.0637]
[1750448128126,5.02792972,103390.0,103380.0,0.0637]
[1750448129759,4.82196972,103390.0,103380.0,0.25716101]
[1750448129940,4.05984437,103390.0,103380.0,0.28741902]
[1750448130150,4.25328667,103390.0,103380.0,0.28741902]
[1750448130582,4.05984362,103390.0,103380.0,0.28741902]
[1750448130794,4.0501717,103390.0,103380.0,0.28741902]
[1750448131009,0.58339024,103390.0,103380.0,0.28741902]
[1750448131216,0.89895081,103390.0,103380.0,0.28741902]
[1750448131427,0.89695081,103390.0,103380.0,0.28741902]
[1750448132056,0.90662245,103390.0,103380.0,0.28741902]
[1750448132307,0.89695081,103390.0,103380.0,0.28741902]
[1750448132523,0.4219105,103390.0,103380.0,0.34522537]
[1750448132735,0.88727935,103390.0,103380.0,0.34522537]
[1750448133163,0.84447935,103390.0,103380.0,0.50830537]
[1750448133380,0.85415062,103390.0,103380.0,0.34522537]
[1750448133613,0.87349372,103390.0,103380.0,0.28741902]
[1750448134486,0.85415062,103390.0,103380.0,0.28741902]
[1750448134906,0.87349372,103390.0,103380.0,0.28741902]
[1750448135554,0.87349363,103390.0,103380.0,0.28741902]
[1750448135768,0.86382208,103390.0,103380.0,0.28741902]
[1750448136612,0.87349382,103390.0,103380.0,0.28741902]
[1750448136831,0.88316574,103390.0,103380.0,0.28741902]
[1750448139604,0.89283776,103390.0,103380.0,0.28741902]
[1750448140886,1.08628006,103390.0,103380.0,0.28741902]
[1750448141832,1.0862809,103390.0,103380.0,0.28741902]
[1750448142032,1.0862809,103390.0,103380.0,0.27650663]
[1750448142235,1.0669377,103390.0,103380.0,0.43111396]
[1750448142589,1.0669377,103390.0,103380.0,0.49551797]
[1750448142786,1.0669377,103390.0,103380.0,0.50519083]
[1750448143009,1.0669377,103390.0,103380.0,0.52453627]
[1750448143935,1.05726578,103390.0,103380.0,0.52453627]
[1750448145231,0.38878196,103390.0,103380.0,0.53420819]
[1750448145524,0.87349428,103390.0,103380.0,0.53420819]
[1750448145720,0.40812543,103390.0,103380.0,0.37116819]
[1750448145919,0.40812543,103390.0,103380.0,0.53420819]
[1750448145920,0.87349428,103390.0,103380.0,0.53420819]
[1750448146332,0.86382245,103390.0,103380.0,0.46980418]
[1750448146539,0.87349419,103390.0,103380.0,0.47080418]
[1750448146946,0.87349419,103390.0,103380.0,0.47280418]
[1750448147357,0.85415081,103390.0,103380.0,0.47280418]
[1750448147557,0.86382245,103390.0,103380.0,0.47280418]
[1750448147763,0.86382245,103390.0,103380.0,0.30976418]
[1750448147965,0.87349428,103390.0,103380.0,0.47280418]
[1750448148348,0.86382245,103390.0,103380.0,0.47280418]
[1750448148938,0.86382245,103390.0,103380.0,0.48280418]
[1750448150365,0.87349437,103390.0,103380.0,0.48280418]
[1750448150786,0.86382245,103390.0,103380.0,0.48280418]
[1750448151016,0.87349428,103390.0,103380.0,0.48280418]
[1750448152049,0.8831662,103390.0,103380.0,0.48280418]
[1750448152838,0.41779735,103390.0,103380.0,0.48280418]
[1750448153043,0.8831662,103390.0,103380.0,0.48280418]
[1750448156252,0.87349428,103390.0,103380.0,0.48280418]
[1750448156677,0.8831662,103390.0,103380.0,0.48280418]
[1750448157282,0.87349428,103390.0,103380.0,0.48280418]
[1750448157706,0.3791105,103390.0,103380.0,0.55044248]
[1750448157926,0.86382208,103390.0,103380.0,0.55044248]
[1750448158553,0.86382208,103390.0,103380.0,0.48280418]
[1750448159389,0.49438322,103390.0,103380.0,0.48280418]
[1750448159600,0.03868602,103390.0,103380.0,0.48280418]
[1750448159813,0.48471158,103390.0,103380.0,0.48280418]
[1750448160015,0.48223158,103390.0,103380.0,0.48280418]
[1750448160264,0.47256012,103390.0,103380.0,0.55044248]
[1750448160476,0.46536885,103390.0,103380.0,0.55044248]
[1750448160700,0.47504031,103390.0,103380.0,0.55044248]
[1750448160907,0.47504031,103390.0,103380.0,0.48276418]
[1750448161115,0.69749801,103390.0,103380.0,0.47309179]
[1750448161316,0.69749801,103390.0,103380.0,0.48276418]
[1750448161522,0.50405561,103390.0,103380.0,0.48276418]
[1750448162377,0.49438369,103390.0,103380.0,0.48276418]
[1750448162583,0.47504031,103390.0,103380.0,0.55039848]
[1750448163029,0.47504031,103390.0,103380.0,0.48276418]
[1750448163873,0.48471195,103390.0,103380.0,0.48276418]
[1750448164117,0.47504031,103390.0,103380.0,0.48276418]
[1750448164335,0.51445332,103390.0,103380.0,0.48276418]
[1750448164559,0.52412496,103390.0,103380.0,0.48276418]
[1750448164763,0.51445332,103390.0,103380.0,0.48276418]
[1750448165416,0.46536885,103390.0,103380.0,0.55039848]
[1750448165861,0.39429098,103400.0,103390.0,0.28475752]
[1750448165862,0.19119494,103400.0,103390.0,0.28475752]
[1750448166072,0.64685149,103400.0,103390.0,0.28593498]
[1750448166287,0.65652257,103400.0,103390.0,0.28593498]
[1750448166498,0.64685149,103400.0,103390.0,0.28593498]
[1750448166716,0.6371805,103400.0,103390.0,0.31297059]
[1750448167453,0.96750979,103400.0,103390.0,0.31297059]
[1750448167870,0.9771805,103400.0,103390.0,0.31297059]
[1750448168109,0.96750979,103400.0,103390.0,0.31297059]
[1750448168734,0.97718059,103400.0,103390.0,0.31297059]
[1750448168893,0.9771805,103400.0,103390.0,0.31297059]
[1750448169090,1.02690202,103400.0,103390.0,0.31297059]
[1750448169763,1.01723113,103400.0,103390.0,0.31297059]
[1750448169991,0.67723094,103400.0,103390.0,0.31297059]
[1750448170200,0.67723094,103400.0,103390.0,0.28593498]
[1750448170579,0.66756033,103400.0,103390.0,0.28593498]
[1750448171219,0.67723104,103400.0,103390.0,0.28593498]
[1750448172278,0.66756033,103400.0,103390.0,0.28593498]
[1750448172509,0.67723104,103400.0,103390.0,0.28593498]
[1750448172929,0.63443104,103400.0,103390.0,0.28593498]
[1750448173567,0.53443104,103400.0,103390.0,0.28593498]
[1750448174015,0.50541948,103400.0,103390.0,0.28593498]
[1750448174262,0.50817885,103410.0,103400.0,0.28616599]
[1750448174469,0.50817885,103410.0,103400.0,0.44908599]
[1750448174908,0.52751831,103410.0,103400.0,0.28616599]
[1750448175121,1.22671137,103410.0,103400.0,0.43828547]
[1750448175328,1.18629251,103410.0,103400.0,0.26569467]
[1750448175574,0.21276501,103400.0,103390.0,0.27763332]
[1750448175788,0.69747574,103400.0,103390.0,0.45022487]
[1750448175969,0.69747574,103400.0,103390.0,0.43088168]
[1750448176216,0.69747574,103400.0,103390.0,0.37875351]
[1750448176217,0.68780531,103400.0,103390.0,0.37875351]
[1750448176435,0.68780531,103400.0,103390.0,0.00304746]
[1750448176637,1.00846361,103400.0,103390.0,4.746e-05]
[1750448176862,1.00935361,103400.0,103390.0,0.00204746]
[1750448177087,1.00846361,103400.0,103390.0,0.20516178]
[1750448177299,1.00846361,103400.0,103390.0,0.2148337]
[1750448177501,1.03751861,103400.0,103390.0,0.2148337]
[1750448177707,1.03751861,103400.0,103390.0,0.2158337]
[1750448178140,1.03751861,103400.0,103390.0,0.2148337]
[1750448178551,1.03751861,103400.0,103390.0,0.2128337]
[1750448179737,1.02784744,103400.0,103390.0,0.20316178]
[1750448180149,1.02784744,103400.0,103390.0,4.746e-05]
[1750448180352,1.15451637,103400.0,103390.0,4.746e-05]
[1750448180957,4.37935322,103400.0,103390.0,4.746e-05]
[1750448182924,4.38135322,103400.0,103390.0,4.746e-05]
[1750448184179,4.54423322,103400.0,103390.0,4.746e-05]
[1750448186699,4.38577337,103400.0,103390.0,4.746e-05]
[1750448187917,4.38577337,103400.0,103390.0,0.06484746]
[1750448188133,4.22289337,103400.0,103390.0,4.746e-05]
[1750448188307,4.42849337,103400.0,103390.0,4.746e-05]
[1750448189483,4.22378337,103400.0,103390.0,4.746e-05]
[1750448189693,4.52465322,103400.0,103390.0,4.746e-05]
[1750448190127,4.31905322,103400.0,103390.0,4.746e-05]
[1750448190334,4.52465322,103400.0,103390.0,4.746e-05]
[1750448191564,4.55475322,103400.0,103390.0,4.746e-05]
[1750448191766,4.58565322,103400.0,103390.0,4.746e-05]
[1750448192626,4.55475322,103400.0,103390.0,4.746e-05]
[1750448192827,4.52465322,103400.0,103390.0,4.746e-05]
[1750448193611,4.52376322,103400.0,103390.0,4.746e-05]
[1750448194014,4.52465322,103400.0,103390.0,4.746e-05]
[1750448194787,4.31905322,103400.0,103390.0,4.746e-05]
[1750448195001,4.42938337,103400.0,103390.0,4.746e-05]
[1750448196720,4.42849337,103400.0,103390.0,0.06224746]
[1750448197345,4.42849337,103400.0,103390.0,0.25568976]
[1750448197566,0.413775,103400.0,103390.0,0.28586507]
[1750448197780,0.371055,103400.0,103390.0,0.29553653]
[1750448197983,0.55848489,103400.0,103390.0,0.3694693]
[1750448198188,0.54881428,103400.0,103390.0,0.3694693]
[1750448198399,0.89848489,103400.0,103390.0,0.3694693]
[1750448198611,0.89848499,103400.0,103390.0,0.3694693]
[1750448198836,0.88681428,103400.0,103390.0,0.3694693]
[1750448199048,0.88881428,103400.0,103390.0,0.29553653]
[1750448199292,0.90815578,103400.0,103390.0,0.29553653]
[1750448199494,0.90615578,103400.0,103390.0,0.29553653]
[1750448199710,0.91582677,103400.0,103390.0,0.29553653]
[1750448199918,0.92549785,103400.0,103390.0,0.29553653]
[1750448200151,1.11892218,103400.0,103390.0,0.28586507]
[1750448200361,1.11892218,103400.0,103390.0,0.28586516]
[1750448200562,1.11892218,103400.0,103390.0,0.29553671]
[1750448200782,0.92549859,103400.0,103390.0,0.30520817]
[1750448201208,0.91582742,103400.0,103390.0,0.30520817]
[1750448201682,0.90615559,103400.0,103390.0,0.30520817]
[1750448202361,0.44078674,103400.0,103390.0,0.30520817]
[1750448202579,0.92549766,103400.0,103390.0,0.30520817]
[1750448204740,0.90615559,103400.0,103390.0,0.30520817]
[1750448205156,0.91582658,103400.0,103390.0,0.30520817]
[1750448206290,0.90615559,103400.0,103390.0,0.30520817]
[1750448206498,0.91582658,103400.0,103390.0,0.30520817]
[1750448206940,1.10925101,103400.0,103390.0,0.25578976]
[1750448207165,4.1973474,103400.0,103390.0,0.20326187]
[1750448207436,4.29262633,103400.0,103390.0,0.26386187]
[1750448207846,4.29262633,103400.0,103390.0,0.27353389]
[1750448209476,4.28295553,103400.0,103390.0,0.06074746]
[1750448209687,4.28295553,103400.0,103390.0,0.00014746]
[1750448209897,4.10303517,103400.0,103390.0,0.00014746]
[1750448210110,4.29489117,103400.0,103390.0,0.00014746]
[1750448211301,4.38695446,103400.0,103390.0,0.00014746]
[1750448211511,4.32579117,103400.0,103390.0,0.00014746]
[1750448214207,4.37323202,103400.0,103390.0,0.00014746]
[1750448215964,4.37523202,103400.0,103390.0,0.00014746]
[1750448216377,4.34233202,103400.0,103390.0,0.00014746]
[1750448219005,4.31143202,103400.0,103390.0,0.00014746]
[1750448219406,3.84606317,103400.0,103390.0,0.00014746]
[1750448219828,4.33461992,103400.0,103390.0,0.00014746]
[1750448220673,4.42988977,103400.0,103390.0,0.00014746]
[1750448221033,4.46178977,103400.0,103390.0,0.00014746]
[1750448221477,4.95885862,103400.0,103390.0,0.00014746]
[1750448221684,5.04402351,103400.0,103390.0,0.00014746]
[1750448221887,4.65025887,103400.0,103390.0,0.00014746]
[1750448222089,0.20311422,103390.0,103380.0,0.0001]
[1750448222312,4.74533996,103390.0,103380.0,0.00014747]
[1750448222524,5.18276843,103390.0,103380.0,0.00014747]
[1750448222719,5.23353587,103390.0,103380.0,0.00014747]
[1750448222895,5.26758539,103390.0,103380.0,0.00014747]
[1750448223090,4.33684769,103390.0,103380.0,0.00014747]
[1750448223294,5.29675636,103390.0,103380.0,0.00014747]
[1750448223949,4.65066942,103380.0,103370.0,0.0001]
[1750448224182,5.02760201,103380.0,103370.0,0.0001]
[1750448224580,3.36262052,103370.0,103360.0,0.07771895]
[1750448224786,4.3816783,103370.0,103360.0,0.07771895]
[1750448225143,4.7216783,103370.0,103360.0,0.07771895]
[1750448225344,0.21286823,103350.0,103340.0,0.14456895]
[1750448225547,1.30676593,103350.0,103340.0,0.14456895]
[1750448226658,1.30681308,103350.0,103340.0,0.14456895]
[1750448226889,1.30681308,103350.0,103340.0,0.34778164]
[1750448227104,0.67828423,103350.0,103340.0,0.35178164]
[1750448227321,0.72823999,103350.0,103340.0,0.4291421]
[1750448227530,0.72823999,103350.0,103340.0,0.40978936]
[1750448227772,0.71128893,103350.0,103340.0,0.37113485]
[1750448227972,0.71128893,103350.0,103340.0,0.38181127]
[1750448228385,0.75143635,103350.0,103340.0,0.38181127]
[1750448228569,0.70875635,103350.0,103340.0,0.39148759]
[1750448228857,0.75143635,103350.0,103340.0,0.44999504]
[1750448229072,0.75143635,103350.0,103340.0,0.35278164]
[1750448229283,0.75143635,103350.0,103340.0,0.36245834]
[1750448230155,0.74176059,103350.0,103340.0,0.07185]
[1750448230599,0.74176059,103350.0,103340.0,0.2653859]
[1750448230834,0.74176059,103350.0,103340.0,0.2750626]
[1750448231060,0.74176059,103350.0,103340.0,0.07185]
[1750448231265,0.90536059,103350.0,103340.0,0.07085]
[1750448231477,0.90536059,103350.0,103340.0,0.06885]
[1750448231913,0.90536059,103350.0,103340.0,0.07185]
[1750448232559,4.90377537,103350.0,103340.0,0.07065]
[1750448233195,4.93284537,103350.0,103340.0,0.07065]
[1750448233869,4.93284537,103350.0,103340.0,0.06865]
[1750448234107,4.93284537,103350.0,103340.0,0.07985]
[1750448234513,4.93284537,103350.0,103340.0,0.07685]
[1750448234742,4.93284537,103350.0,103340.0,0.2713859]
[1750448235179,4.93284537,103350.0,103340.0,0.2810626]
[1750448235382,4.93284537,103350.0,103340.0,0.2713859]
[1750448235596,4.93284537,103350.0,103340.0,0.07665]
[1750448236022,4.93284537,103350.0,103340.0,0.01235]
[1750448236231,4.96325525,103350.0,103340.0,0.01235]
[1750448236444,4.93284537,103350.0,103340.0,0.01235]
[1750448236902,4.93373537,103350.0,103340.0,0.01235]
[1750448237528,4.93284537,103350.0,103340.0,0.07555]
[1750448238833,4.72656537,103350.0,103340.0,0.31083405]
[1750448239071,4.47747219,103350.0,103340.0,0.32051056]
[1750448239284,3.97240042,103350.0,103340.0,0.33986321]
[1750448239493,0.88430852,103350.0,103340.0,0.34953934]
[1750448239696,0.44222487,103350.0,103340.0,0.34953934]
[1750448239912,0.90759372,103350.0,103340.0,0.39634693]
[1750448240124,0.9172692,103350.0,103340.0,0.39634693]
[1750448240593,0.92694487,103350.0,103340.0,0.39634693]
[1750448240784,0.9172692,103350.0,103340.0,0.39634693]
[1750448242267,0.90759372,103350.0,103340.0,0.39634693]
[1750448242465,0.89791843,103350.0,103340.0,0.39634693]
[1750448242654,0.90759363,103350.0,103340.0,0.39634693]
[1750448242867,0.38272715,103350.0,103340.0,0.47173901]
[1750448243080,0.04272715,103350.0,103340.0,0.47173901]
[1750448243285,4.715e-05,103350.0,103340.0,0.47173901]
[1750448244374,4.715e-05,103350.0,103340.0,1.03238679]
[1750448245335,4.715e-05,103350.0,103340.0,0.48929899]
[1750448245538,4.715e-05,103350.0,103340.0,0.95366784]
[1750448245814,4.715e-05,103350.0,103340.0,0.95666784]
[1750448246055,4.715e-05,103350.0,103340.0,0.49129899]
[1750448246268,4.715e-05,103350.0,103340.0,1.03438679]
[1750448247107,4.715e-05,103350.0,103340.0,1.03538679]
[1750448248679,4.715e-05,103350.0,103340.0,1.04992764]
[1750448249796,4.715e-05,103350.0,103340.0,1.08987749]
[1750448250540,4.715e-05,103350.0,103340.0,0.50683984]
[1750448250763,4.715e-05,103350.0,103340.0,0.97220869]
[1750448253437,4.715e-05,103350.0,103340.0,1.01160805]
[1750448256328,4.715e-05,103350.0,103340.0,0.97220869]
[1750448257584,1.50004715,103350.0,103340.0,0.97220869]
[1750448258034,1.50004715,103350.0,103340.0,1.12636869]
[1750448258617,1.27072115,103350.0,103340.0,1.12636869]
[1750448262188,1.27072115,103350.0,103340.0,0.48229899]
[1750448262396,1.27072115,103350.0,103340.0,0.64609899]
[1750448262794,1.73609,103350.0,103340.0,0.64609899]
[1750448263033,1.7554403,103350.0,103340.0,0.64609899]
[1750448263455,1.74576501,103350.0,103340.0,0.48229899]
[1750448263662,1.75544021,103350.0,103340.0,0.64605899]
[1750448263878,1.29007136,103350.0,103340.0,0.64605899]
[1750448264078,1.29007136,103350.0,103340.0,0.57062691]
[1750448264494,1.28039616,103350.0,103340.0,0.57062691]
[1750448265757,1.27072115,103350.0,103340.0,0.57062691]
[1750448266170,1.28039616,103350.0,103340.0,0.57062691]
[1750448266595,1.29007136,103350.0,103340.0,0.57062691]
[1750448267042,1.28039616,103350.0,103340.0,0.57062691]
[1750448267245,1.27072115,103350.0,103340.0,0.57062691]
[1750448267672,1.28039625,103350.0,103340.0,0.57062691]
[1750448267877,1.27072115,103350.0,103340.0,0.57062691]
[1750448268291,1.27072115,103350.0,103340.0,0.64705499]
[1750448278225,1.27072115,103350.0,103340.0,1.11242384]
[1750448278850,1.27072115,103350.0,103340.0,0.64705499]
[1750448280551,1.27072115,103350.0,103340.0,0.64630499]
[1750448281186,1.28039616,103350.0,103340.0,0.64630499]
[1750448281411,1.7457651,103350.0,103340.0,0.48217499]
[1750448281623,2.10511578,103350.0,103340.0,0.41022798]
[1750448281838,2.0857652,103350.0,103340.0,0.47242798]
[1750448282079,1.62039635,103350.0,103340.0,0.47359798]
[1750448282302,1.61072115,103350.0,103340.0,0.47359798]
[1750448282505,2.07609,103350.0,103340.0,0.47359798]
[1750448282709,1.61072115,103350.0,103340.0,0.54032317]
[1750448282913,1.63007145,103350.0,103340.0,0.54032317]
[1750448283050,1.61072115,103350.0,103340.0,0.54032317]
[1750448283623,1.62039616,103350.0,103340.0,0.54032317]
[1750448283829,1.61072115,103350.0,103340.0,0.54032317]
[1750448285383,1.61072115,103350.0,103340.0,1.10097095]
[1750448285384,1.27072115,103350.0,103340.0,1.10097095]
[1750448285602,1.27072115,103350.0,103340.0,1.1786899]
[1750448286461,1.27072115,103350.0,103340.0,1.19323075]
[1750448288441,1.27072115,103350.0,103340.0,1.53323075]
[1750448288676,1.27072115,103350.0,103340.0,1.58323075]
[1750448289154,1.27072115,103350.0,103340.0,1.58223075]
[1750448289395,1.27072115,103350.0,103340.0,1.58123075]
[1750448289876,1.27072115,103350.0,103340.0,1.41827075]
[1750448290129,1.27072115,103350.0,103340.0,1.5508318]
[1750448290368,1.27072115,103350.0,103340.0,1.08546295]
[1750448290601,1.27072115,103350.0,103340.0,1.5508318]
[1750448291543,1.27072115,103350.0,103340.0,1.5008318]
[1750448291746,1.27072115,103350.0,103340.0,1.5508318]
[1750448293460,1.26832115,103350.0,103340.0,1.5508318]
[1750448294073,1.26832115,103350.0,103340.0,1.5008318]
[1750448294281,1.26832115,103350.0,103340.0,1.1608318]
[1750448294498,1.26832115,103350.0,103340.0,0.65286295]
[1750448294722,1.26832115,103350.0,103340.0,0.6383221]
[1750448295337,1.26832115,103350.0,103340.0,0.6384021]
[1750448295747,1.26832115,103350.0,103340.0,0.6364021]
[1750448295952,1.26832115,103350.0,103340.0,0.6374021]
[1750448296310,1.26832115,103350.0,103340.0,0.6334021]
[1750448299979,1.26832115,103350.0,103340.0,0.5700321]
[1750448300298,1.26832115,103350.0,103340.0,0.6329321]
[1750448300482,1.26832115,103350.0,103340.0,0.6341521]
[1750448300858,1.26832115,103350.0,103340.0,0.5700321]
[1750448301486,1.74336501,103350.0,103340.0,0.39659597]
[1750448301678,2.36072379,103350.0,103340.0,0.37875929]
[1750448301897,2.36072379,103350.0,103340.0,0.39811203]
[1750448302021,2.16720662,103350.0,103340.0,0.40778816]
[1750448302224,2.36072379,103350.0,103340.0,0.23459203]
[1750448302430,2.13321653,103350.0,103340.0,0.30345275]
[1750448302684,2.13321653,103350.0,103340.0,0.30445275]
[1750448302882,2.12354086,103350.0,103340.0,0.30345275]
[1750448303098,2.14289136,103350.0,103340.0,0.30345275]
[1750448303303,2.14289126,103350.0,103340.0,0.30245275]
[1750448303501,2.14289126,103350.0,103340.0,0.30345275]
[1750448303701,2.10360569,103350.0,103340.0,0.30445275]
[1750448304110,2.10360569,103350.0,103340.0,0.30345275]
[1750448304312,2.11328126,103350.0,103340.0,0.30345275]
[1750448304515,2.11328126,103350.0,103340.0,0.30445275]
[1750448305153,2.11328126,103350.0,103340.0,0.46785275]
[1750448305576,2.18426693,103350.0,103340.0,0.46781275]
[1750448305792,2.21777132,103350.0,103340.0,0.46781275]
[1750448306395,2.20809565,103350.0,103340.0,0.46781275]
[1750448306810,2.17729565,103350.0,103340.0,0.46781275]
[1750448307350,2.40311348,103350.0,103340.0,0.38927571]
[1750448307560,2.40311348,103350.0,103340.0,0.39895194]
[1750448308370,2.3837628,103350.0,103340.0,0.00335]
[1750448308570,2.83945608,103350.0,103340.0,0.00335]
[1750448309210,2.83945608,103350.0,103340.0,0.2065626]
[1750448309605,2.83945608,103350.0,103340.0,0.2045626]
[1750448310606,2.68724213,103350.0,103340.0,0.2045626]
[1750448312507,1.75650443,103350.0,103340.0,0.21423911]
[1750448312691,2.02835611,103350.0,103340.0,0.29362825]
[1750448312922,2.04770726,103350.0,103340.0,0.29362825]
[1750448313127,2.24122443,103350.0,103340.0,0.29362825]
[1750448313336,2.02746554,103350.0,103340.0,0.29362825]
[1750448313537,2.0259964,103350.0,103340.0,0.29362825]
[1750448313712,2.01632083,103350.0,103340.0,0.29362825]
[1750448313912,2.0259964,103350.0,103340.0,0.23359166]
[1750448314740,2.22918933,103350.0,103340.0,0.23359166]
[1750448314966,2.72724893,103350.0,103340.0,0.21423911]
[1750448315167,2.76044893,103350.0,103340.0,0.21423911]
[1750448315374,2.71756893,103350.0,103340.0,0.21423911]
[1750448315586,2.75077364,103350.0,103340.0,0.1948859]
[1750448315798,2.74109807,103350.0,103340.0,0.00135]
[1750448318442,2.90457807,103350.0,103340.0,0.00135]
[1750448318854,2.90457807,103350.0,103340.0,0.21423939]
[1750448319036,2.90457807,103350.0,103340.0,0.22391599]
[1750448319598,2.90457807,103350.0,103340.0,0.2335925]
[1750448319962,2.67986212,103350.0,103340.0,0.2335925]
[1750448320478,2.51638212,103350.0,103340.0,0.24326892]
[1750448320683,2.51638212,103350.0,103340.0,0.2335925]
[1750448320863,2.25786449,103350.0,103340.0,0.3023409]
[1750448321320,1.79249564,103350.0,103340.0,0.3023409]
[1750448321522,2.00536377,103350.0,103340.0,0.23359213]
[1750448321681,2.01503962,103350.0,103340.0,0.24326845]
[1750448321899,2.00536442,103350.0,103340.0,0.23359213]
[1750448322060,2.47073327,103350.0,103340.0,0.23359213]
[1750448322673,2.50153327,103350.0,103340.0,0.23359213]
[1750448323081,2.49185779,103350.0,103340.0,0.22391571]
[1750448323843,2.49185779,103350.0,103340.0,0.23359213]
[1750448325844,2.49185779,103350.0,103340.0,0.22391571]
[1750448327665,2.48218212,103350.0,103340.0,0.2142392]
[1750448327880,2.48218212,103350.0,103340.0,0.22391562]
[1750448328493,1.55144442,103350.0,103340.0,0.22391562]
[1750448328697,2.45138175,103350.0,103340.0,0.23359185]
[1750448328905,2.4610576,103350.0,103340.0,0.23359185]
[1750448329316,2.25786458,103350.0,103340.0,0.24326798]
[1750448329543,2.4610576,103350.0,103340.0,0.24326798]
[1750448329743,2.4610576,103350.0,103340.0,0.23359185]
[1750448329944,2.25697458,103350.0,103340.0,0.24326798]
[1750448330148,2.4601676,103350.0,103340.0,0.23359185]
[1750448331372,2.4601676,103350.0,103340.0,0.23359194]
[1750448331991,2.4601676,103350.0,103340.0,0.24326817]
[1750448334185,2.26018764,103350.0,103340.0,0.23359194]
[1750448334596,2.26018764,103350.0,103340.0,0.22391562]
[1750448335099,2.26018764,103350.0,103340.0,0.22391571]
[1750448335544,2.26018764,103350.0,103340.0,0.24326845]
[1750448337612,2.26107764,103350.0,103340.0,0.24326845]
[1750448337823,2.06666973,103350.0,103340.0,0.24326788]
[1750448338237,2.06666973,103350.0,103340.0,0.23359175]
[1750448338454,2.26986275,103350.0,103340.0,0.24326798]
[1750448338664,2.06666973,103350.0,103340.0,0.24326751]
[1750448339090,2.26986266,103350.0,103340.0,0.22391515]
[1750448339304,2.36513251,103350.0,103340.0,0.2142392]
[1750448339514,2.26107746,103350.0,103340.0,0.2142392]
[1750448339750,2.25051198,103350.0,103340.0,0.21423939]
[1750448339957,1.37488861,103350.0,103340.0,0.1948859]
[1750448340159,2.30562631,103350.0,103340.0,0.1948859]
[1750448340363,2.30562631,103350.0,103340.0,0.20456269]
[1750448340571,2.30562631,103350.0,103340.0,0.21423939]
[1750448340778,2.26465055,103350.0,103340.0,0.20456269]
[1750448340983,2.26465055,103350.0,103340.0,0.21423939]
[1750448341191,2.26465055,103350.0,103340.0,0.20456269]
[1750448341791,2.42805055,103350.0,103340.0,0.20456269]
[1750448342025,2.46075055,103350.0,103340.0,0.21423939]
[1750448342447,2.46075055,103350.0,103340.0,0.20456269]
[1750448343272,2.46075055,103350.0,103340.0,0.21423939]
[1750448343477,5.65379648,103350.0,103340.0,0.00135]
[1750448346263,4.72305878,103350.0,103340.0,0.00135]
[1750448346500,5.65379648,103350.0,103340.0,0.00135]
[1750448347132,5.65379648,103350.0,103340.0,0.2045626]
[1750448347751,5.62109648,103350.0,103340.0,0.2045626]
[1750448348047,5.62109648,103350.0,103340.0,0.00135]
[1750448348410,5.62109648,103350.0,103340.0,0.20456269]
[1750448348608,4.66743407,103350.0,103340.0,0.2142392]
[1750448348810,5.59817177,103350.0,103340.0,0.2142392]
[1750448349208,5.59817177,103350.0,103340.0,0.22391562]
[1750448349690,5.13280292,103350.0,103340.0,0.22391562]
[1750448350177,1.56809589,103350.0,103340.0,0.35765598]
[1750448350387,1.54874483,103350.0,103340.0,0.35879598]
[1750448350586,1.60122031,103350.0,103340.0,0.35879598]
[1750448350790,1.09305146,103350.0,103340.0,0.35879598]
[1750448351000,1.60122031,103350.0,103340.0,0.35879598]
[1750448351208,1.61089598,103350.0,103340.0,0.30073175]
[1750448351822,1.771289,103350.0,103340.0,0.30073175]
[1750448351997,1.62057183,103350.0,103340.0,0.30073175]
[1750448352233,1.61089598,103350.0,103340.0,0.30073175]